fUST/lending_fUST_20250914
["ID","MTS","AMOUNT","RATE_DAILY","PERIOD"]
[385437120,1757849144458,-480.0,0.00021917,2]
[385437121,1757849144482,-480.0,0.00021917,2]
[385437122,1757849144505,-480.0,0.00021917,2]
[385437123,1757849144528,-480.0,0.00021917,2]
[385437124,1757849144553,-660.58,0.00021917,2]
[385437125,1757849144576,-1082.16,0.00021917,2]
[385437126,1757849144600,-1357.87,0.00021917,2]
[385437127,1757849144623,-1106.17,0.00021917,2]
[385437128,1757849144647,-480.0,0.00021917,2]
[385437129,1757849144671,-480.0,0.00021917,2]
[385437130,1757849144695,-481.8902627,0.00021917,2]
[385437131,1757849144718,-461.53155844,0.00021917,2]
[385437132,1757849144742,-500.0,0.00021917,2]
[385437133,1757849144766,-791.0,0.00021917,2]
[385437134,1757849144790,-481.52731698,0.00021917,2]
[385437135,1757849144816,-1137.78,0.00021917,2]
[385437136,1757849144840,-480.0,0.00021917,2]
[385437137,1757849144865,-500.0,0.00021917,2]
[385437138,1757849144889,-480.0,0.00021917,2]
[385437139,1757849144915,-1596.74,0.00021917,2]
[385437140,1757849144939,-480.0,0.00021917,2]
[385437141,1757849144963,-480.0,0.00021917,2]
[385437142,1757849144989,-3155.49,0.00021917,2]
[385437143,1757849145013,-534.07,0.00021917,2]
[385437144,1757849145038,-6388.12,0.00021917,2]
[385437145,1757849145063,-480.0,0.00021917,2]
[385437146,1757849145090,-480.0,0.00021917,2]
[385437147,1757849145116,-480.0,0.00021917,2]
[385437148,1757849145140,-480.5010226,0.00021917,2]
[385437149,1757849145165,-480.0,0.00021917,2]
[385437150,1757849145190,-480.0,0.00021917,2]
[385437151,1757849145214,-959.31,0.00021917,2]
[385437152,1757849145238,-480.0,0.00021917,2]
[385437153,1757849145262,-480.0,0.00021917,2]
[385437154,1757849145285,-480.0,0.00021917,2]
[385437155,1757849145308,-480.0,0.00021917,2]
[385437156,1757849145332,-610.0,0.00021917,2]
[385437157,1757849145358,-480.0,0.00021917,2]
[385437158,1757849145383,-480.0,0.00021917,2]
[385437159,1757849145407,-480.0,0.00021917,2]
[385437160,1757849145432,-570.62,0.00021917,2]
[385437161,1757849145457,-480.0,0.00021917,2]
[385437162,1757849145481,-480.0,0.00021917,2]
[385437163,1757849145505,-480.0,0.00021917,2]
[385437164,1757849145529,-681.73,0.00021917,2]
[385437165,1757849145553,-480.0,0.00021917,2]
[385437166,1757849145579,-480.0,0.00021917,2]
[385437167,1757849145603,-481.08429304,0.00021917,2]
[385437168,1757849145628,-480.0,0.00021917,2]
[385437169,1757849145653,-480.0,0.00021917,2]
[385437170,1757849145678,-480.0,0.00021917,2]
[385437171,1757849145830,-334.12880735,0.00021917,2]
[385437172,1757849145859,-480.0,0.00021917,2]
[385437173,1757849145885,-1091.4,0.00021917,2]
[385437174,1757849145911,-480.0,0.00021917,2]
[385437175,1757849145937,-3634.41,0.00021917,2]
[385437176,1757849145963,-480.0,0.00021917,2]
[385437177,1757849145988,-487.30105359,0.00021917,2]
[385437178,1757849146015,-480.0,0.00021917,2]
[385437179,1757849146040,-1588.92,0.00021917,2]
[385437180,1757849146066,-480.0,0.00021917,2]
[385437181,1757849146092,-480.0,0.00021917,2]
[385437182,1757849146119,-480.0,0.00021917,2]
[385437183,1757849146144,-480.0,0.00021917,2]
[385437184,1757849146168,-480.0,0.00021917,2]
[385437185,1757849146193,-480.0,0.00021917,2]
[385437186,1757849146219,-481.14934243,0.00021917,2]
[385437187,1757849146243,-480.0,0.00021917,2]
[385437188,1757849146269,-480.0,0.00021917,2]
[385437189,1757849146297,-480.0,0.00021917,2]
[385437190,1757849146324,-480.60593743,0.00021917,2]
[385437191,1757849146350,-480.0,0.00021917,2]
[385437192,1757849146376,-480.0,0.00021917,2]
[385437193,1757849146402,-1000.0,0.00021917,2]
[385437194,1757849146426,-480.0,0.00021917,2]
[385437195,1757849146450,-480.0,0.00021917,2]
[385437196,1757849146477,-1280.18,0.00021917,2]
[385437197,1757849146501,-480.0,0.00021917,2]
[385437198,1757849146526,-480.0,0.00021917,2]
[385437199,1757849146550,-480.0,0.00021917,2]
[385437200,1757849146576,-1036.19,0.00021917,2]
[385437201,1757849146601,-1353.64,0.00021917,2]
[385437202,1757849146625,-500.0,0.00021917,2]
[385437203,1757849146649,-480.0,0.00021917,2]
[385437204,1757849146678,-500.0,0.00021917,2]
[385437205,1757849146702,-447.91463731,0.00021917,2]
[385437206,1757849146727,-412.48,0.00021917,2]
[385437207,1757849146752,-480.0,0.00021917,2]
[385437208,1757849146777,-480.0,0.00021917,2]
[385437209,1757849146802,-547.54,0.00021917,2]
[385437210,1757849146826,-481.62278203,0.00021917,2]
[385437211,1757849146851,-513.43341099,0.00021917,2]
[385437212,1757849146876,-651.18,0.00021917,2]
[385437213,1757849146901,-480.0,0.00021917,2]
[385437214,1757849146925,-698.18,0.00021917,2]
[385437215,1757849146948,-480.0,0.00021917,2]
[385437216,1757849146974,-480.0,0.00021917,2]
[385437217,1757849146998,-879.07,0.00021917,2]
[385437218,1757849147023,-612.98,0.00021917,2]
[385437219,1757849147048,-481.82512824,0.00021917,2]
[385437220,1757849147072,-480.0,0.00021917,2]
[385437221,1757849147101,-672.52,0.00021917,2]
[385437222,1757849147124,-480.0,0.00021917,2]
[385437223,1757849147149,-7856.87,0.00021917,2]
[385437224,1757849147175,-30808.13,0.00021917,2]
[385437225,1757849147199,-480.0,0.00021917,2]
[385437226,1757849147222,-480.0,0.00021917,2]
[385437227,1757849147245,-480.0,0.00021917,2]
[385437228,1757849147268,-480.0,0.00021917,2]
[385437229,1757849147292,-500.0,0.00021917,2]
[385437230,1757849147315,-500.0,0.00021917,2]
[385437231,1757849147338,-500.0,0.00021917,2]
[385437232,1757849147361,-500.0,0.00021917,2]
[385437233,1757849147385,-1119.03,0.00021917,2]
[385437234,1757849147409,-480.0,0.00021917,2]
[385437235,1757849147433,-1237.67,0.00021917,2]
[385437236,1757849147458,-8259.5333788,0.00021917,2]
[385437237,1757849147490,-480.0,0.00021917,2]
[385437238,1757849147549,-480.0,0.00021917,2]
[385437239,1757849147579,-480.0,0.00021917,2]
[385437240,1757849147603,-480.0,0.00021917,2]
[385437241,1757849147627,-428.82616097,0.00021917,2]
[385437242,1757849147651,-480.0,0.00021917,2]
[385437243,1757849147674,-480.0,0.00021917,2]
[385437244,1757849147700,-480.0,0.00021917,2]
[385437245,1757849147724,-1515.45,0.00021917,2]
[385437246,1757849147748,-480.0,0.00021917,2]
[385437247,1757849147772,-3533.47,0.00021917,2]
[385437248,1757849147796,-480.0,0.00021917,2]
[385437249,1757849147822,-500.0,0.00021917,2]
[385437250,1757849147846,-500.0,0.00021917,2]
[385437251,1757849147870,-1585.89,0.00021917,2]
[385437252,1757849147895,-500.0,0.00021917,2]
[385437253,1757849147919,-500.0,0.00021917,2]
[385437254,1757849147943,-500.0,0.00021917,2]
[385437255,1757849147965,-1374.83,0.00021917,2]
[385437256,1757849147988,-480.0,0.00021917,2]
[385437257,1757849148012,-500.0,0.00021917,2]
[385437258,1757849148036,-500.0,0.00021917,2]
[385437259,1757849148060,-500.0,0.00021917,2]
[385437260,1757849148087,-410.29,0.00021917,2]
[385437261,1757849148112,-1152.3,0.00021917,2]
[385437262,1757849148140,-480.0,0.00021917,2]
[385437263,1757849148165,-480.0,0.00021917,2]
[385437264,1757849148189,-480.0,0.00021917,2]
[385437265,1757849148213,-1021.5,0.00021917,2]
[385437266,1757849148362,-480.0,0.00021917,2]
[385437267,1757849148392,-578.38,0.00021917,2]
[385437268,1757849148418,-209.38653475,0.00021917,2]
[385437269,1757849148443,-480.0,0.00021917,2]
[385437270,1757849148467,-480.0,0.00021917,2]
[385437271,1757849148491,-240.80847407,0.00021917,2]
[385437272,1757849148515,-480.0,0.00021917,2]
[385437273,1757849148538,-1626.35,0.00021917,2]
[385437274,1757849148562,-480.50499705,0.00021917,2]
[385437275,1757849148586,-480.0,0.00021917,2]
[385437276,1757849148611,-1631.18,0.00021917,2]
[385437277,1757849148635,-480.0,0.00021917,2]
[385437278,1757849148660,-480.0,0.00021917,2]
[385437279,1757849148685,-480.0,0.00021917,2]
[385437280,1757849148710,-480.0,0.00021917,2]
[385437281,1757849148735,-2539.83,0.00021917,2]
[385437282,1757849148760,-480.0,0.00021917,2]
[385437283,1757849148786,-1015.05,0.00021917,2]
[385437284,1757849148811,-484.91629434,0.00021917,2]
[385437285,1757849148837,-480.0,0.00021917,2]
[385437286,1757849148863,-480.0,0.00021917,2]
[385437287,1757849148889,-480.0,0.00021917,2]
[385437288,1757849148914,-480.0,0.00021917,2]
[385437289,1757849148941,-3265.83,0.00021917,2]
[385437290,1757849148967,-2979.04,0.00021917,2]
[385437291,1757849148991,-703.08,0.00021917,2]
[385437292,1757849149018,-585.51,0.00021917,2]
[385437293,1757849149042,-480.0,0.00021917,2]
[385437294,1757849149068,-480.0,0.00021917,2]
[385437295,1757849149095,-480.0,0.00021917,2]
[385437296,1757849149120,-480.0,0.00021917,2]
[385437297,1757849149145,-480.0,0.00021917,2]
[385437298,1757849149171,-600.32367084,0.00021917,2]
[385437299,1757849149195,-480.0,0.00021917,2]
[385437300,1757849149222,-483.14983147,0.00021917,2]
[385437301,1757849149247,-480.0,0.00021917,2]
[385437302,1757849149272,-480.0,0.00021917,2]
[385437303,1757849149298,-766.53,0.00021917,2]
[385437304,1757849149321,-480.14329122,0.00021917,2]
[385437305,1757849149345,-604.17,0.00021917,2]
[385437306,1757849149370,-480.0,0.00021917,2]
[385437307,1757849149394,-480.0,0.00021917,2]
[385437308,1757849149419,-4473.91,0.00021917,2]
[385437309,1757849149442,-480.0,0.00021917,2]
[385437310,1757849149466,-862.1,0.00021917,2]
[385437311,1757849149492,-7847.24,0.00021917,2]
[385437312,1757849149515,-480.0,0.00021917,2]
[385437313,1757849149538,-480.0,0.00021917,2]
[385437314,1757849149562,-480.0,0.00021917,2]
[385437315,1757849149585,-699.56,0.00021917,2]
[385437316,1757849149610,-480.0,0.00021917,2]
[385437317,1757849149633,-480.0,0.00021917,2]
[385437318,1757849149657,-480.0,0.00021917,2]
[385437319,1757849149681,-480.0,0.00021917,2]
[385437320,1757849149706,-480.0,0.00021917,2]
[385437321,1757849149730,-480.0,0.00021917,2]
[385437322,1757849149754,-480.0,0.00021917,2]
[385437323,1757849149778,-480.0,0.00021917,2]
[385437324,1757849149802,-480.0,0.00021917,2]
[385437325,1757849149826,-480.0,0.00021917,2]
[385437326,1757849149851,-725.98,0.00021917,2]
[385437327,1757849149876,-480.0,0.00021917,2]
[385437328,1757849149900,-480.0,0.00021917,2]
[385437329,1757849149923,-480.0,0.00021917,2]
[385437330,1757849149947,-480.0,0.00021917,2]
[385437331,1757849149971,-571.66,0.00021917,2]
[385437332,1757849149995,-480.0,0.00021917,2]
[385437333,1757849150019,-480.0,0.00021917,2]
[385437334,1757849150047,-756.91,0.00021917,2]
[385437335,1757849150073,-480.0,0.00021917,2]
[385437336,1757849150100,-480.0,0.00021917,2]
[385437337,1757849150125,-480.0,0.00021917,2]
[385437338,1757849150149,-480.0,0.00021917,2]
[385437339,1757849150175,-296.29073495,0.00021954,2]
[385437340,1757849150198,-148.71018834,0.00021973,2]
[385437349,1757849174891,200.0,0.00025,120]
[385437373,1757849227067,-160.0,0.00021321,2]
[385437374,1757849227093,-757.46221199,0.00021898,2]
[385437375,1757849227125,-499.05209688,0.00021916,2]
[385437376,1757849227150,-413.28586389,0.00021916,2]
[385437377,1757849227176,-300.0,0.00021916,2]
[385437378,1757849227201,-500.0,0.00021916,2]
[385437379,1757849227227,-500.0,0.00021916,2]
[385437380,1757849227251,-500.0,0.00021916,2]
[385437381,1757849227276,-500.0,0.00021916,2]
[385437382,1757849227300,-500.0,0.00021916,2]
[385437383,1757849227325,-500.0,0.00021916,2]
[385437384,1757849227378,-500.0,0.00021916,2]
[385437385,1757849227429,-500.0,0.00021916,2]
[385437386,1757849227455,-500.0,0.00021916,2]
[385437387,1757849227481,-500.0,0.00021916,2]
[385437388,1757849227505,-500.0,0.00021916,2]
[385437389,1757849227532,-500.0,0.00021916,2]
[385437390,1757849227557,-500.0,0.00021916,2]
[385437391,1757849227582,-500.0,0.00021916,2]
[385437392,1757849227608,-500.0,0.00021916,2]
[385437393,1757849227631,-500.0,0.00021916,2]
[385437394,1757849227659,-500.0,0.00021916,2]
[385437395,1757849227683,-500.0,0.00021916,2]
[385437396,1757849227707,-467.52047112,0.00021916,2]
[385437397,1757849227731,-500.0,0.00021916,2]
[385437398,1757849227757,-500.0,0.00021916,2]
[385437399,1757849227782,-500.0,0.00021916,2]
[385437400,1757849227806,-333.86059259,0.00021916,2]
[385437401,1757849227832,-500.0,0.00021916,2]
[385437402,1757849227856,-500.0,0.00021916,2]
[385437403,1757849227882,-500.0,0.00021916,2]
[385437404,1757849227907,-500.0,0.00021916,2]
[385437405,1757849227934,-500.0,0.00021916,2]
[385437406,1757849227960,-500.0,0.00021916,2]
[385437407,1757849227984,-500.0,0.00021916,2]
[385437408,1757849228008,-500.0,0.00021916,2]
[385437409,1757849228032,-500.0,0.00021916,2]
[385437410,1757849228056,-305.80971734,0.00021916,2]
[385437411,1757849228079,-500.0,0.00021916,2]
[385437412,1757849228106,-500.0,0.00021916,2]
[385437414,1757849228130,-500.0,0.00021916,2]
[385437415,1757849228154,-500.0,0.00021916,2]
[385437416,1757849228181,-500.0,0.00021916,2]
[385437417,1757849228207,-500.0,0.00021916,2]
[385437418,1757849228231,-500.0,0.00021916,2]
[385437419,1757849228257,-500.0,0.00021916,2]
[385437420,1757849228282,-500.0,0.00021916,2]
[385437421,1757849228307,-550.9215198,0.00021916,2]
[385437422,1757849228333,-343.01350992,0.00021916,2]
[385437423,1757849228357,-500.0,0.00021916,2]
[385437424,1757849228382,-500.0,0.00021916,2]
[385437425,1757849228407,-500.0,0.00021916,2]
[385437426,1757849228432,-500.0,0.00021916,2]
[385437427,1757849228456,-500.0,0.00021916,2]
[385437428,1757849228482,-500.0,0.00021916,2]
[385437429,1757849228506,-500.0,0.00021916,2]
[385437430,1757849228532,-500.0,0.00021916,2]
[385437431,1757849228558,-500.0,0.00021916,2]
[385437432,1757849228583,-500.0,0.00021916,2]
[385437433,1757849228609,-500.0,0.00021916,2]
[385437434,1757849228769,-500.0,0.00021916,2]
[385437435,1757849228795,-500.0,0.00021916,2]
[385437436,1757849228823,-500.0,0.00021916,2]
[385437437,1757849228848,-500.0,0.00021916,2]
[385437438,1757849228875,-500.0,0.00021916,2]
[385437439,1757849228900,-500.0,0.00021916,2]
[385437440,1757849228927,-500.0,0.00021916,2]
[385437441,1757849228952,-500.0,0.00021916,2]
[385437442,1757849228979,-500.0,0.00021916,2]
[385437443,1757849229005,-500.0,0.00021916,2]
[385437444,1757849229032,-500.0,0.00021916,2]
[385437445,1757849229062,-500.0,0.00021916,2]
[385437446,1757849229092,-500.0,0.00021916,2]
[385437447,1757849229123,-500.0,0.00021916,2]
[385437448,1757849229149,-500.0,0.00021916,2]
[385437449,1757849229180,-500.0,0.00021916,2]
[385437450,1757849229208,-500.0,0.00021916,2]
[385437451,1757849229234,-500.0,0.00021916,2]
[385437452,1757849229261,-500.0,0.00021916,2]
[385437453,1757849229285,-500.0,0.00021916,2]
[385437454,1757849229312,-500.0,0.00021916,2]
[385437455,1757849229336,-500.0,0.00021916,2]
[385437456,1757849229362,-500.0,0.00021916,2]
[385437457,1757849229386,-500.0,0.00021916,2]
[385437458,1757849229413,-500.0,0.00021916,2]
[385437459,1757849229439,-579.33246939,0.00021916,2]
[385437460,1757849229465,-500.0,0.00021916,2]
[385437461,1757849229491,-500.0,0.00021916,2]
[385437462,1757849229518,-500.0,0.00021916,2]
[385437463,1757849229545,-500.0,0.00021916,2]
[385437464,1757849229572,-500.0,0.00021916,2]
[385437465,1757849229599,-500.0,0.00021916,2]
[385437467,1757849229624,-500.0,0.00021916,2]
[385437468,1757849229649,-848.0,0.00021917,2]
[385437469,1757849229676,-480.0,0.00021917,2]
[385437470,1757849229700,-480.0,0.00021917,2]
[385437471,1757849229726,-480.0,0.00021917,2]
[385437472,1757849229751,-480.0,0.00021917,2]
[385437473,1757849229777,-480.0,0.00021917,2]
[385437474,1757849229803,-480.0,0.00021917,2]
[385437475,1757849229829,-480.0,0.00021917,2]
[385437476,1757849229854,-480.0,0.00021917,2]
[385437477,1757849229880,-480.0,0.00021917,2]
[385437478,1757849229906,-480.0,0.00021917,2]
[385437479,1757849229933,-480.0,0.00021917,2]
[385437480,1757849229959,-480.0,0.00021917,2]
[385437481,1757849229984,-480.0,0.00021917,2]
[385437482,1757849230008,-482.22995541,0.00021917,2]
[385437483,1757849230032,-4872.12,0.00021917,2]
[385437484,1757849230056,-1265.82,0.00021917,2]
[385437485,1757849230081,-480.0,0.00021917,2]
[385437486,1757849230106,-480.0,0.00021917,2]
[385437487,1757849230130,-480.0,0.00021917,2]
[385437488,1757849230155,-480.0,0.00021917,2]
[385437489,1757849230184,-1191.45,0.00021917,2]
[385437490,1757849230208,-480.0,0.00021917,2]
[385437491,1757849230232,-480.0,0.00021917,2]
[385437492,1757849230256,-480.0,0.00021917,2]
[385437493,1757849230281,-480.0,0.00021917,2]
[385437494,1757849230305,-480.0,0.00021917,2]
[385437495,1757849230329,-480.0,0.00021917,2]
[385437496,1757849230352,-480.0,0.00021917,2]
[385437497,1757849230375,-1091.46,0.00021917,2]
[385437498,1757849230399,-690.58,0.00021917,2]
[385437499,1757849230424,-486.52419579,0.00021917,2]
[385437500,1757849230449,-1685.95,0.00021917,2]
[385437501,1757849230471,-480.0,0.00021917,2]
[385437502,1757849230494,-637.37,0.00021917,2]
[385437503,1757849230519,-3142.52,0.00021917,2]
[385437504,1757849230542,-480.0,0.00021917,2]
[385437505,1757849230565,-480.0,0.00021917,2]
[385437506,1757849230589,-480.0,0.00021917,2]
[385437507,1757849230611,-480.0,0.00021917,2]
[385437508,1757849230637,-1143.86,0.00021917,2]
[385437509,1757849230660,-480.0,0.00021917,2]
[385437510,1757849230685,-559.19,0.00021917,2]
[385437511,1757849230709,-731.88,0.00021917,2]
[385437512,1757849230733,-437.48549191,0.00021917,2]
[385437513,1757849230759,-480.0,0.00021917,2]
[385437514,1757849230783,-480.0,0.00021917,2]
[385437515,1757849230808,-480.43945588,0.00021917,2]
[385437516,1757849230835,-483.0129824,0.00021917,2]
[385437517,1757849230859,-480.0,0.00021917,2]
[385437518,1757849230885,-15193.31,0.00021917,2]
[385437519,1757849230911,-480.0,0.00021917,2]
[385437520,1757849230936,-480.0,0.00021917,2]
[385437521,1757849230960,-480.0,0.00021917,2]
[385437522,1757849230985,-1132.6,0.00021917,2]
[385437523,1757849231010,-480.0,0.00021917,2]
[385437524,1757849231036,-336.26840041,0.00021917,2]
[385437525,1757849231061,-480.0,0.00021917,2]
[385437526,1757849231085,-480.0,0.00021917,2]
[385437527,1757849231112,-480.0,0.00021917,2]
[385437528,1757849231137,-480.0,0.00021917,2]
[385437529,1757849231289,-480.0,0.00021917,2]
[385437530,1757849231319,-480.0,0.00021917,2]
[385437531,1757849231344,-480.0,0.00021917,2]
[385437532,1757849231368,-480.0,0.00021917,2]
[385437533,1757849231392,-2565.74,0.00021917,2]
[385437534,1757849231416,-480.0,0.00021917,2]
[385437535,1757849231440,-480.0,0.00021917,2]
[385437536,1757849231464,-480.0,0.00021917,2]
[385437537,1757849231488,-480.0,0.00021917,2]
[385437538,1757849231511,-480.0,0.00021917,2]
[385437539,1757849231535,-2456.24,0.00021917,2]
[385437540,1757849231560,-1389.61,0.00021917,2]
[385437541,1757849231584,-480.0,0.00021917,2]
[385437542,1757849231608,-3415.58,0.00021917,2]
[385437543,1757849231631,-480.0,0.00021917,2]
[385437544,1757849231655,-480.0,0.00021917,2]
[385437546,1757849231682,-482.91,0.00021917,2]
[385437547,1757849231709,-1002.26,0.00021917,2]
[385437548,1757849231733,-478.36916472,0.00021917,2]
[385437549,1757849231758,-480.0,0.00021917,2]
[385437550,1757849231781,-480.0,0.00021917,2]
[385437551,1757849231806,-1164.05,0.00021917,2]
[385437552,1757849231830,-1136.94,0.00021917,2]
[385437553,1757849231856,-1077.94,0.00021917,2]
[385437554,1757849231881,-480.0,0.00021917,2]
[385437555,1757849231905,-480.0,0.00021917,2]
[385437556,1757849231931,-480.0,0.00021917,2]
[385437557,1757849231956,-480.0,0.00021917,2]
[385437558,1757849231980,-480.0,0.00021917,2]
[385437559,1757849232005,-1238.33,0.00021917,2]
[385437560,1757849232028,-480.0,0.00021917,2]
[385437561,1757849232051,-480.0,0.00021917,2]
[385437562,1757849232076,-480.0,0.00021917,2]
[385437563,1757849232101,-500.0,0.00021917,2]
[385437564,1757849232126,-3157.77,0.00021917,2]
[385437565,1757849232151,-480.0,0.00021917,2]
[385437566,1757849232176,-480.20294934,0.00021917,2]
[385437567,1757849232202,-6318.45,0.00021917,2]
[385437568,1757849232227,-633.05,0.00021917,2]
[385437569,1757849232251,-733.57956956,0.00021917,2]
[385437570,1757849232275,-480.0,0.00021917,2]
[385437571,1757849232298,-500.0,0.00021973,2]
[385437572,1757849232321,-514.21165937,0.00021973,2]
[385437573,1757849232345,-504.11039704,0.00021973,2]
[385437574,1757849232368,-507.0775955,0.00021973,2]
[385437575,1757849232391,-500.0,0.00021973,2]
[385437576,1757849232416,-500.0,0.00021973,2]
[385437577,1757849232440,-500.0,0.00021973,2]
[385437578,1757849232464,-500.0,0.00021973,2]
[385437579,1757849232487,-500.0,0.00021973,2]
[385437580,1757849232510,-500.0,0.00021973,2]
[385437581,1757849232533,-402.78639252,0.00021973,2]
[385437582,1757849232557,-500.0,0.00021973,2]
[385437583,1757849232583,-500.0,0.00021973,2]
[385437584,1757849232606,-293.94190727,0.00021973,2]
[385437585,1757849232632,-168.0,0.00021977,2]
[385437586,1757849232658,-229.51,0.00021988,3]
[385437587,1757849232740,-976.0,0.00021998,2]
[385437588,1757849232772,-2156.0,0.00021998,2]
[385437589,1757849232798,-634.0,0.00021998,2]
[385437590,1757849232823,-410.0,0.00021998,2]
[385437591,1757849232847,-2696.0,0.00021998,2]
[385437592,1757849232871,-792.22,0.00022,7]
[385437593,1757849232895,-2370.48,0.00022,7]
[385437594,1757849232923,-381.76,0.00022,2]
[385437595,1757849233158,480.0,0.00021917,2]
[385437596,1757849233404,500.0,0.00021917,2]
[385437597,1757849233546,480.0,0.00021917,2]
[385437598,1757849233584,480.0,0.00021917,2]
[385437599,1757849233632,480.0,0.00021917,2]
[385437600,1757849233685,480.0,0.00021917,2]
[385437602,1757849235565,480.0,0.00021917,2]
[385437603,1757849237822,209.77125205,0.00021917,2]
[385437605,1757849239539,480.0,0.00021917,2]
[385437606,1757849239817,1630.84,0.00021917,2]
[385437607,1757849241308,480.0,0.00021917,2]
[385437609,1757849242906,480.0,0.00021917,2]
[385437610,1757849243313,480.0,0.00021917,2]
[385437611,1757849243426,480.0,0.00021917,2]
[385437612,1757849244820,480.0,0.00021917,2]
[385437613,1757849245076,480.0,0.00021917,2]
[385437615,1757849245371,862.22,0.00021917,2]
[385437616,1757849246059,480.0,0.00021917,2]
[385437617,1757849246340,1308.23,0.00021917,2]
[385437620,1757849249172,480.0,0.00021917,2]
[385437621,1757849249292,480.0,0.00021917,2]
[385437622,1757849249389,480.0,0.00021917,2]
[385437623,1757849250522,480.0,0.00021917,2]
[385437624,1757849250676,257.27411566,0.00021917,2]
[385437625,1757849252368,480.0,0.00021917,2]
[385437626,1757849252782,500.0,0.00021916,2]
[385437627,1757849252816,500.0,0.00021916,2]
[385437628,1757849252845,500.0,0.00021916,2]
[385437629,1757849253147,368.97325273,0.00021916,2]
[385437630,1757849253181,500.0,0.00021916,2]
[385437632,1757849254500,480.0,0.00021917,2]
[385437634,1757849255488,694.51,0.00021917,2]
[385437635,1757849255798,480.0,0.00021917,2]
[385437636,1757849256408,177.46757877,0.00021917,2]
[385437637,1757849256628,480.0,0.00021917,2]
[385437638,1757849256779,368.15436181,0.00021997,2]
[385437639,1757849256844,500.0,0.00021997,2]
[385437640,1757849257367,184.14596911,0.00021997,2]
[385437641,1757849257399,500.0,0.00021916,2]
[385437642,1757849257428,500.0,0.00021916,2]
[385437644,1757849257458,500.0,0.00021916,2]
[385437645,1757849257493,500.0,0.00021916,2]
[385437646,1757849257523,500.0,0.00021916,2]
[385437647,1757849257553,500.0,0.00021916,2]
[385437648,1757849257583,591.46,0.00021917,2]
[385437649,1757849257616,500.0,0.00021916,2]
[385437650,1757849257646,500.0,0.00021916,2]
[385437651,1757849257677,500.0,0.00021916,2]
[385437652,1757849257712,500.0,0.00021997,2]
[385437653,1757849257748,500.0,0.00021916,2]
[385437654,1757849257780,500.0,0.00021916,2]
[385437655,1757849257816,500.0,0.00021916,2]
[385437656,1757849257851,500.0,0.00021916,2]
[385437657,1757849257883,500.0,0.00021916,2]
[385437658,1757849257918,500.0,0.00021916,2]
[385437659,1757849258002,500.0,0.00021916,2]
[385437660,1757849258034,500.0,0.00021916,2]
[385437661,1757849258076,500.0,0.00021916,2]
[385437662,1757849258110,500.0,0.00021916,2]